[Event "32nd NATO Chess Championship"]
[Site "Tartu, Estonia"]
[Date "2022.06.30"]
[Round "6.17"]
[White "Duren, Andrew"]
[Black "Tikerpuu, Mati"]
[Result "1-0"]
[TimeControl "90 min + 30 sec increment from move one"]
[WhiteFideId "2019663"]
[BlackFideId "4505905"]
[WhiteElo "1997"]
[BlackElo "1819"]

1. d4 {[%clk 01:30:57]} {[%emt 00:00:03]} b6 {[%clk 01:30:47]} {[%emt
00:00:15]} 2. Bf4 {[%clk 01:31:18]} {[%emt 00:00:08]} e6 {[%clk 01:30:55]}
{[%emt 00:00:23]} 3. e3 {[%clk 01:31:38]} {[%emt 00:00:09]} Bb7 {[%clk
01:30:52]} {[%emt 00:00:34]} 4. Nf3 {[%clk 01:31:52]} {[%emt 00:00:15]} Nf6
{[%clk 01:30:45]} {[%emt 00:00:38]} 5. Nbd2 {[%clk 01:30:53]} {[%emt 00:01:28]}
Be7 {[%clk 01:29:50]} {[%emt 00:01:25]} 6. h3 {[%clk 01:31:11]} {[%emt
00:00:12]} O-O {[%clk 01:29:54]} {[%emt 00:00:26]} 7. Bd3 {[%clk 01:26:50]}
{[%emt 00:04:51]} c5 {[%clk 01:28:20]} {[%emt 00:02:04]} 8. O-O {[%clk
01:22:54]} {[%emt 00:04:26]} d5 {[%clk 01:25:55]} {[%emt 00:02:54]} 9. c3
{[%clk 01:22:32]} {[%emt 00:00:53]} Nc6 {[%clk 01:19:22]} {[%emt 00:07:04]} 10.
Ne5 {[%clk 01:16:22]} {[%emt 00:06:39]} Nxe5 {[%clk 01:16:30]} {[%emt
00:03:23]} 11. dxe5 {[%clk 01:15:10]} {[%emt 00:01:42]} Ne4 {[%clk 01:07:15]}
{[%emt 00:09:45]} 12. Bxe4 {[%clk 01:12:39]} {[%emt 00:03:00]} dxe4 {[%clk
01:06:29]} {[%emt 00:01:16]} 13. Qc2 {[%clk 01:12:58]} {[%emt 00:00:11]} Qd3
{[%clk 01:03:51]} {[%emt 00:03:08]} 14. Qxd3 {[%clk 01:13:20]} {[%emt
00:00:08]} exd3 {[%clk 01:04:16]} {[%emt 00:00:05]} 15. c4 {[%clk 01:12:35]}
{[%emt 00:01:16]} Rfd8 {[%clk 01:01:19]} {[%emt 00:03:26]} 16. Rfd1 {[%clk
01:07:03]} {[%emt 00:06:01]} a6 {[%clk 00:57:52]} {[%emt 00:03:57]} 17. a4
{[%clk 01:06:45]} {[%emt 00:00:48]} Bc6 {[%clk 00:57:26]} {[%emt 00:00:56]} 18.
f3 {[%clk 01:05:07]} {[%emt 00:02:09]} b5 {[%clk 00:51:42]} {[%emt 00:06:14]}
19. axb5 {[%clk 01:05:22]} {[%emt 00:00:15]} axb5 {[%clk 00:51:59]} {[%emt
00:00:14]} 20. b3 {[%clk 01:05:34]} {[%emt 00:00:17]} b4 {[%clk 00:41:43]}
{[%emt 00:10:46]} 21. e4 {[%clk 00:54:52]} {[%emt 00:11:11]} h6 {[%clk
00:23:36]} {[%emt 00:18:37]} 22. Rxa8 {[%clk 00:48:44]} {[%emt 00:06:38]} Rxa8
{[%clk 00:22:49]} {[%emt 00:01:18]} 23. Nf1 {[%clk 00:48:54]} {[%emt 00:00:19]}
Ra3 {[%clk 00:09:49]} {[%emt 00:13:31]} 24. Rxd3 {[%clk 00:49:03]} {[%emt
00:00:20]} Ba4 {[%clk 00:09:56]} {[%emt 00:00:23]} 25. Nd2 {[%clk 00:49:20]}
{[%emt 00:00:12]} Kf8 {[%clk 00:09:58]} {[%emt 00:00:29]} 26. Be3 {[%clk
00:48:16]} {[%emt 00:01:34]} Ke8 {[%clk 00:09:47]} {[%emt 00:00:42]} 27. Kf1
{[%clk 00:46:40]} {[%emt 00:02:06]} Bd7 {[%clk 00:09:08]} {[%emt 00:01:09]} 28.
Ke2 {[%clk 00:44:35]} {[%emt 00:02:34]} Kd8 {[%clk 00:08:20]} {[%emt 00:01:19]}
29. h4 {[%clk 00:39:22]} {[%emt 00:05:42]} Kc7 {[%clk 00:07:30]} {[%emt
00:01:20]} 30. h5 {[%clk 00:38:15]} {[%emt 00:01:37]} Bc6 {[%clk 00:06:31]}
{[%emt 00:01:29]} 31. g4 {[%clk 00:37:14]} {[%emt 00:01:31]} Kb6 {[%clk
00:06:21]} {[%emt 00:00:41]} 32. Nb1 {[%clk 00:28:56]} {[%emt 00:08:48]} Ra1
{[%clk 00:05:52]} {[%emt 00:00:59]} 33. Rd1 {[%clk 00:27:05]} {[%emt 00:02:20]}
Ra2+ {[%clk 00:06:09]} {[%emt 00:00:14]} 34. Nd2 {[%clk 00:27:16]} {[%emt
00:00:19]} Ra3 {[%clk 00:05:52]} {[%emt 00:00:47]} 35. f4 {[%clk 00:23:29]}
{[%emt 00:04:17]} Ra2 {[%clk 00:06:05]} {[%emt 00:00:17]} 36. Kd3 {[%clk
00:22:16]} {[%emt 00:01:42]} Bh4 {[%clk 00:05:25]} {[%emt 00:01:11]} 37. Rh1
{[%clk 00:21:44]} {[%emt 00:01:01]} Bd8 {[%clk 00:05:26]} {[%emt 00:00:30]} 38.
g5 {[%clk 00:20:48]} {[%emt 00:01:26]} Ra7 {[%clk 00:02:55]} {[%emt 00:03:00]}
39. Rg1 {[%clk 00:19:19]} {[%emt 00:01:59]} Rd7+ {[%clk 00:02:20]} {[%emt
00:01:05]} 40. Kc2 {[%clk 00:18:47]} {[%emt 00:01:02]} hxg5 {[%clk 00:01:45]}
{[%emt 00:01:06]} 41. fxg5 {[%clk 00:18:59]} {[%emt 00:00:17]} Bc7 {[%clk
00:01:59]} {[%emt 00:00:17]} 42. Bf4 {[%clk 00:17:37]} {[%emt 00:01:52]} g6
{[%clk 00:01:52]} {[%emt 00:00:37]} 43. h6 {[%clk 00:17:46]} {[%emt 00:00:19]}
Rd8 {[%clk 00:02:15]} {[%emt 00:00:08]} 44. Rf1 {[%clk 00:15:53]} {[%emt
00:02:23]} Rh8 {[%clk 00:01:51]} {[%emt 00:00:55]} 45. Kd3 {[%clk 00:15:30]}
{[%emt 00:00:53]} Rd8+ {[%clk 00:02:15]} {[%emt 00:00:05]} 46. Ke3 {[%clk
00:15:46]} {[%emt 00:00:14]} Rh8 {[%clk 00:02:16]} {[%emt 00:00:30]} 47. Bg3
{[%clk 00:14:32]} {[%emt 00:01:44]} Be8 {[%clk 00:01:59]} {[%emt 00:00:47]} 48.
Nf3 {[%emt 00:01:03]} Bc6 {[%clk 00:02:07]} {[%emt 00:00:20]} 49. Nh2 {[%clk
00:14:17]} {[%emt 00:00:12]} Rh7 {[%clk 00:02:21]} {[%emt 00:00:17]} 50. Ng4
{[%clk 00:14:13]} {[%emt 00:00:34]} Bd8 {[%clk 00:02:34]} {[%emt 00:00:18]} 51.
Nf6 {[%clk 00:14:19]} {[%emt 00:00:24]} Rh8 {[%clk 00:02:42]} {[%emt 00:00:22]}
52. Kf4 {[%clk 00:13:46]} {[%emt 00:01:03]} Bc7 {[%clk 00:02:13]} {[%emt
00:00:59]} 53. Bf2 {[%clk 00:13:40]} {[%emt 00:00:35]} Bd8 {[%clk 00:01:22]}
{[%emt 00:01:22]} 54. Rd1 {[%clk 00:12:38]} {[%emt 00:01:31]} Bxf6 {[%clk
00:01:01]} {[%emt 00:00:52]} 55. exf6 {[%clk 00:12:56]} {[%emt 00:00:11]} e5+
{[%clk 00:01:22]} {[%emt 00:00:10]} 56. Kf3 {[%clk 00:12:45]} {[%emt 00:00:41]}
Rf8 {[%clk 00:00:59]} {[%emt 00:00:53]} 57. Bg3 {[%clk 00:12:08]} {[%emt
00:01:07]} Re8 {[%clk 00:01:23]} {[%emt 00:00:06]} 58. h7 {[%clk 00:12:05]}
{[%emt 00:00:32]} Rh8 {[%clk 00:01:24]} {[%emt 00:00:30]} 59. Rh1 {[%clk
00:12:29]} {[%emt 00:00:05]} Bd7 {[%clk 00:01:28]} {[%emt 00:00:27]} 60. Bxe5
{[%clk 00:12:42]} {[%emt 00:00:17]} Be6 {[%clk 00:01:50]} {[%emt 00:00:08]} 61.
Bd6 {[%clk 00:12:45]} {[%emt 00:00:26]} Kc6 {[%clk 00:02:05]} {[%emt 00:00:16]}
62. Bf8 {[%clk 00:12:48]} {[%emt 00:00:26]} Rxf8 {[%clk 00:01:48]} {[%emt
00:00:48]} 63. h8=Q {[%clk 00:13:11]} {[%emt 00:00:07]} Rxh8 {[%clk 00:02:14]}
{[%emt 00:00:04]} 64. Rxh8 {[%clk 00:13:35]} {[%emt 00:00:06]} Kd7 {[%clk
00:01:55]} {[%emt 00:00:49]} 65. Ra8 {[%clk 00:13:17]} {[%emt 00:00:47]} Kc7
{[%clk 00:01:46]} {[%emt 00:00:39]} 66. Ra7+ {[%clk 00:13:06]} {[%emt
00:00:41]} Kd6 {[%clk 00:01:38]} {[%emt 00:00:39]} 67. Kf4 {[%clk 00:12:55]}
{[%emt 00:00:40]} Kc6 {[%clk 00:01:45]} {[%emt 00:00:23]} 68. Re7 {[%clk
00:12:41]} {[%emt 00:00:44]} Bxc4 {[%clk 00:01:41]} {[%emt 00:00:35]} 69. bxc4
{[%clk 00:12:26]} {[%emt 00:00:44]} b3 {[%clk 00:02:08]} {[%emt 00:00:03]} 70.
Re8 {[%clk 00:12:50]} {[%emt 00:00:07]} Kb7 {[%clk 00:02:30]} {[%emt 00:00:08]}
71. Rh8 {[%clk 00:13:14]} {[%emt 00:00:05]} b2 {[%clk 00:00:58]} {[%emt
00:02:03]} 72. Rh1 {[%clk 00:13:38]} {[%emt 00:00:04]} Kc6 {[%clk 00:01:04]}
{[%emt 00:00:25]} 73. e5 {[%clk 00:13:51]} {[%emt 00:00:17]} Kd7 {[%clk
00:01:18]} {[%emt 00:00:17]} 74. Rd1+ {[%clk 00:14:09]} {[%emt 00:00:10]} Kc7
{[%clk 00:01:20]} {[%emt 00:00:29]} 75. e6 {[%clk 00:14:30]} {[%emt 00:00:09]}
b1=Q {[%clk 00:00:54]} {[%emt 00:00:56]} 76. Rxb1 {[%clk 00:14:52]} {[%emt
00:00:08]} Kd8 {[%clk 00:00:34]} {[%emt 00:00:50]} 77. e7+ {[%clk 00:15:00]}
{[%emt 00:00:22]} Kd7 {[%clk 00:00:55]} {[%emt 00:00:09]} 78. Rd1+ {[%clk
00:15:23]} {[%emt 00:00:07]} Kc7 {[%clk 00:00:58]} {[%emt 00:00:27]} 79. e8=Q
{[%clk 00:15:46]} {[%emt 00:00:08]} Kb7 {[%clk 00:01:10]} {[%emt 00:00:17]} 80.
Qb5+ {[%clk 00:15:55]} {[%emt 00:00:21]} Kc7 {[%clk 00:01:18]} {[%emt
00:00:23]} 81. Rd7+ {[%clk 00:16:16]} {[%emt 00:00:08]} Kc8 {[%clk 00:01:34]}
{[%emt 00:00:14]} 82. Qb7# {[%emt 00:00:08]} 1-0

[Event "32nd NATO Chess Championship"]
[Site "Tartu, Estonia"]
[Date "2022.06.30"]
[Round "6.18"]
[White "Ivbulis, Martins"]
[Black "Stankowski, Aleksander"]
[Result "1/2-1/2"]
[TimeControl "90 min + 30 sec increment from move one"]
[WhiteFideId "11603496"]
[BlackFideId "1137603"]
[WhiteElo "1815"]
[BlackElo "1971"]

1. d4 {[%clk 01:30:54]} {[%emt 00:00:06]} Nf6 {[%clk 01:30:23]} {[%emt
00:00:37]} 2. Nc3 {[%clk 01:31:08]} {[%emt 00:00:16]} g6 {[%clk 01:30:46]}
{[%emt 00:00:08]} 3. Nf3 {[%clk 01:29:31]} {[%emt 00:02:06]} Bg7 {[%clk
01:30:59]} {[%emt 00:00:17]} 4. e4 {[%clk 01:29:51]} {[%emt 00:00:10]} d6
{[%clk 01:31:22]} {[%emt 00:00:06]} 5. Be2 {[%clk 01:29:01]} {[%emt 00:01:20]}
O-O {[%clk 01:31:42]} {[%emt 00:00:11]} 6. O-O {[%clk 01:29:22]} {[%emt
00:00:09]} Nc6 {[%clk 01:30:57]} {[%emt 00:01:15]} 7. Be3 {[%clk 01:26:35]}
{[%emt 00:03:17]} e5 {[%clk 01:30:54]} {[%emt 00:00:33]} 8. dxe5 {[%clk
01:26:47]} {[%emt 00:00:19]} dxe5 {[%clk 01:30:23]} {[%emt 00:01:00]} 9. Qxd8
{[%clk 01:26:42]} {[%emt 00:00:35]} Rxd8 {[%clk 01:30:26]} {[%emt 00:00:27]} 10.
Bg5 {[%clk 01:24:47]} {[%emt 00:02:26]} Re8 {[%clk 01:25:47]} {[%emt 00:05:08]}
11. Rad1 {[%clk 01:05:44]} {[%emt 00:19:33]} Bg4 {[%clk 01:19:34]} {[%emt
00:06:42]} 12. h3 {[%clk 01:00:40]} {[%emt 00:05:34]} Bxf3 {[%clk 01:19:08]}
{[%emt 00:00:57]} 13. Bxf3 {[%clk 01:01:03]} {[%emt 00:00:07]} Nd4 {[%clk
01:19:15]} {[%emt 00:00:22]} 14. Bxf6 {[%clk 01:00:56]} {[%emt 00:00:38]} Bxf6
{[%clk 01:17:53]} {[%emt 00:01:52]} 15. Nd5 {[%clk 01:01:14]} {[%emt 00:00:11]}
Bd8 {[%clk 01:17:14]} {[%emt 00:01:08]} 16. c3 {[%clk 01:00:43]} {[%emt
00:01:03]} Ne6 {[%clk 01:12:29]} {[%emt 00:05:15]} 17. Be2 {[%clk 00:55:23]}
{[%emt 00:05:50]} c6 {[%clk 01:10:35]} {[%emt 00:02:24]} 18. Ne3 {[%clk
00:55:05]} {[%emt 00:00:48]} Nc5 {[%clk 01:01:57]} {[%emt 00:09:07]} 19. f3
{[%clk 00:48:05]} {[%emt 00:07:32]} Na4 {[%clk 00:52:32]} {[%emt 00:09:54]} 20.
Kh1 {[%clk 00:35:02]} {[%emt 00:13:33]} Bg5 {[%clk 00:32:33]} {[%emt 00:20:28]}
21. Nc4 {[%clk 00:33:16]} {[%emt 00:02:17]} b5 {[%clk 00:31:47]} {[%emt
00:01:16]} 22. Na5 {[%clk 00:26:39]} {[%emt 00:07:07]} Nxb2 {[%clk 00:24:39]}
{[%emt 00:07:38]} 23. Rd6 {[%clk 00:24:39]} {[%emt 00:02:31]} Red8 {[%clk
00:23:25]} {[%emt 00:01:43]} 24. Rxd8+ {[%clk 00:24:30]} {[%emt 00:00:39]} Rxd8
{[%clk 00:18:58]} {[%emt 00:04:57]} 25. Nxc6 {[%clk 00:21:43]} {[%emt
00:03:17]} Rd2 {[%clk 00:18:21]} {[%emt 00:01:07]} 26. Bxb5 {[%clk 00:22:02]}
{[%emt 00:00:11]} Nd1 {[%clk 00:18:27]} {[%emt 00:00:24]} 27. Re1 {[%clk
00:15:05]} {[%emt 00:07:27]} Nxc3 {[%clk 00:12:56]} {[%emt 00:06:00]} 28. Bc4
{[%clk 00:15:19]} {[%emt 00:00:16]} Bf4 {[%clk 00:11:41]} {[%emt 00:01:46]} 29.
Nxa7 {[%clk 00:13:42]} {[%emt 00:02:06]} Nxa2 {[%clk 00:08:00]} {[%emt
00:04:12]} 30. Bxa2 {[%clk 00:14:01]} {[%emt 00:00:11]} Rxa2 {[%clk 00:08:24]}
{[%emt 00:00:06]} 31. Nc6 {[%clk 00:14:25]} {[%emt 00:00:06]} Kg7 {[%clk
00:07:36]} {[%emt 00:01:17]} 32. Nb4 {[%clk 00:14:09]} {[%emt 00:00:47]} Rd2
{[%clk 00:06:51]} {[%emt 00:01:13]} 33. Nd5 {[%clk 00:14:22]} {[%emt 00:00:19]}
Bg3 {[%clk 00:06:36]} {[%emt 00:00:44]} 34. Rc1 {[%clk 00:12:34]} {[%emt
00:02:18]} f5 {[%clk 00:05:55]} {[%emt 00:01:11]} 35. Ne3 {[%clk 00:12:46]}
{[%emt 00:00:18]} Bf4 {[%clk 00:02:16]} {[%emt 00:04:09]} 36. Nf1 {[%clk
00:11:58]} {[%emt 00:01:19]} Rd7 {[%clk 00:01:22]} {[%emt 00:01:24]} 37. Re1
{[%clk 00:12:13]} {[%emt 00:00:14]} Kf6 {[%clk 00:01:32]} {[%emt 00:00:21]} 38.
g3 {[%clk 00:11:38]} {[%emt 00:01:05]} Bh6 {[%clk 00:01:55]} {[%emt 00:00:06]}
39. Kg2 {[%clk 00:11:45]} {[%emt 00:00:23]} Rd4 {[%clk 00:01:54]} {[%emt
00:00:32]} 40. Re2 {[%clk 00:11:56]} {[%emt 00:00:20]} Rd3 {[%clk 00:01:34]}
{[%emt 00:00:48]} 41. Kf2 {[%clk 00:11:36]} {[%emt 00:00:51]} Bf8 {[%clk
00:01:05]} {[%emt 00:00:58]} 42. Kg2 {[%clk 00:10:58]} {[%emt 00:01:08]} Bh6
{[%clk 00:01:00]} {[%emt 00:00:35]} 1/2-1/2

[Event "32nd NATO Chess Championship"]
[Site "Tartu, Estonia"]
[Date "2022.06.30"]
[Round "6.19"]
[White "Pirs, Matjaz"]
[Black "Rizihs, Valerijs"]
[Result "0-1"]
[TimeControl "90 min + 30 sec increment from move one"]
[WhiteFideId "14606941"]
[BlackFideId "11603380"]
[WhiteElo "1965"]
[BlackElo "1619"]

1. d4 {[%clk 01:30:54]} {[%emt 00:00:05]} d5 {[%clk 01:25:37]} {[%emt
00:05:24]} 2. Bf4 {[%clk 01:30:51]} {[%emt 00:00:33]} e6 {[%clk 01:25:48]}
{[%emt 00:00:19]} 3. e3 {[%clk 01:31:07]} {[%emt 00:00:14]} Bd6 {[%clk
01:26:06]} {[%emt 00:00:13]} 4. Bg3 {[%clk 01:31:23]} {[%emt 00:00:14]} Nf6
{[%clk 01:26:23]} {[%emt 00:00:12]} 5. Nd2 {[%clk 01:31:37]} {[%emt 00:00:15]}
b6 {[%clk 01:25:54]} {[%emt 00:00:59]} 6. Ngf3 {[%clk 01:30:05]} {[%emt
00:02:03]} O-O {[%clk 01:25:15]} {[%emt 00:01:08]} 7. Bd3 {[%clk 01:29:30]}
{[%emt 00:01:06]} Ba6 {[%clk 01:23:41]} {[%emt 00:02:04]} 8. Bxa6 {[%clk
01:23:35]} {[%emt 00:06:25]} Nxa6 {[%clk 01:24:09]} {[%emt 00:00:02]} 9. c3
{[%clk 01:23:52]} {[%emt 00:00:14]} c5 {[%clk 01:22:29]} {[%emt 00:02:08]} 10.
Qe2 {[%clk 01:20:38]} {[%emt 00:03:45]} Nb8 {[%clk 01:21:44]} {[%emt 00:01:14]}
11. e4 {[%clk 01:18:59]} {[%emt 00:02:11]} Be7 {[%clk 01:09:18]} {[%emt
00:12:56]} 12. O-O {[%clk 01:02:54]} {[%emt 00:16:34]} Nc6 {[%clk 01:04:06]}
{[%emt 00:05:41]} 13. Ne5 {[%clk 00:50:26]} {[%emt 00:13:00]} Nxe5 {[%clk
01:00:31]} {[%emt 00:04:04]} 14. dxe5 {[%clk 00:49:27]} {[%emt 00:01:29]} Nxe4
{[%clk 00:58:50]} {[%emt 00:02:11]} 15. Nxe4 {[%clk 00:45:40]} {[%emt
00:04:18]} dxe4 {[%clk 00:59:18]} {[%emt 00:00:01]} 16. Rfd1 {[%clk 00:39:57]}
{[%emt 00:06:12]} Qc7 {[%clk 00:57:52]} {[%emt 00:01:56]} 17. Qxe4 {[%clk
00:39:49]} {[%emt 00:00:39]} Rad8 {[%clk 00:58:09]} {[%emt 00:00:12]} 18. Kf1
{[%clk 00:22:03]} {[%emt 00:18:17]} Rxd1+ {[%clk 00:54:17]} {[%emt 00:04:23]}
19. Rxd1 {[%clk 00:22:27]} {[%emt 00:00:06]} Rd8 {[%clk 00:54:42]} {[%emt
00:00:04]} 20. Rd3 {[%clk 00:22:46]} {[%emt 00:00:11]} c4 {[%clk 00:48:49]}
{[%emt 00:06:23]} 21. Rxd8+ {[%clk 00:14:31]} {[%emt 00:08:46]} Qxd8 {[%clk
00:47:21]} {[%emt 00:01:57]} 22. Qe2 {[%clk 00:14:32]} {[%emt 00:00:29]} b5
{[%clk 00:47:04]} {[%emt 00:00:46]} 23. f4 {[%clk 00:14:41]} {[%emt 00:00:22]}
Qd5 {[%clk 00:43:04]} {[%emt 00:04:30]} 24. Bf2 {[%clk 00:11:51]} {[%emt
00:03:21]} a5 {[%clk 00:42:58]} {[%emt 00:00:35]} 25. a3 {[%clk 00:12:01]}
{[%emt 00:00:21]} g6 {[%clk 00:41:49]} {[%emt 00:01:37]} 26. Be1 {[%clk
00:10:52]} {[%emt 00:01:40]} h5 {[%clk 00:39:56]} {[%emt 00:02:22]} 27. Bd2
{[%clk 00:10:39]} {[%emt 00:00:44]} Bc5 {[%clk 00:33:50]} {[%emt 00:06:35]} 28.
Ke1 {[%clk 00:10:52]} {[%emt 00:00:18]} Bb6 {[%clk 00:33:15]} {[%emt 00:01:05]}
29. Kd1 {[%clk 00:10:46]} {[%emt 00:00:36]} Qc5 {[%clk 00:23:37]} {[%emt
00:10:07]} 30. Kc2 {[%clk 00:10:34]} {[%emt 00:00:43]} a4 {[%clk 00:22:04]}
{[%emt 00:02:03]} 31. Be1 {[%clk 00:09:59]} {[%emt 00:01:05]} Qd5 {[%clk
00:20:30]} {[%emt 00:02:04]} 32. Bd2 {[%clk 00:09:43]} {[%emt 00:00:46]} Bc7
{[%clk 00:20:17]} {[%emt 00:00:42]} 33. Bc1 {[%clk 00:08:29]} {[%emt 00:01:45]}
Kg7 {[%clk 00:16:41]} {[%emt 00:04:05]} 34. Bd2 {[%clk 00:07:04]} {[%emt
00:01:56]} f6 {[%clk 00:16:45]} {[%emt 00:00:25]} 35. exf6+ {[%clk 00:07:24]}
{[%emt 00:00:12]} Kxf6 {[%clk 00:17:12]} {[%emt 00:00:02]} 36. g3 {[%clk
00:06:45]} {[%emt 00:01:09]} Kf5 {[%clk 00:16:59]} {[%emt 00:00:41]} 37. Qf1
{[%clk 00:06:28]} {[%emt 00:00:48]} Qe4+ {[%clk 00:16:38]} {[%emt 00:00:51]} 38.
Kc1 {[%clk 00:06:51]} {[%emt 00:00:08]} Kg4 {[%clk 00:13:39]} {[%emt 00:03:28]}
39. Be1 {[%clk 00:05:59]} {[%emt 00:01:23]} Bb6 {[%clk 00:11:49]} {[%emt
00:02:20]} 40. h3+ {[%clk 00:05:55]} {[%emt 00:00:35]} Kf5 {[%clk 00:12:12]}
{[%emt 00:00:05]} 41. Bd2 {[%clk 00:05:29]} {[%emt 00:00:57]} Bc5 {[%clk
00:11:51]} {[%emt 00:00:49]} 42. Qd1 {[%clk 00:05:41]} {[%emt 00:00:20]} Qg2
{[%clk 00:07:22]} {[%emt 00:04:59]} 43. Qe1 {[%clk 00:05:33]} {[%emt 00:00:38]}
Qg1 {[%clk 00:07:26]} {[%emt 00:00:24]} 44. Kd1 {[%clk 00:05:47]} {[%emt
00:00:18]} Qxe1+ {[%clk 00:07:36]} {[%emt 00:00:20]} 45. Kxe1 {[%clk 00:06:05]}
{[%emt 00:00:12]} Ke4 {[%clk 00:07:45]} {[%emt 00:00:20]} 46. Ke2 {[%clk
00:06:33]} {[%emt 00:00:03]} Bg1 {[%clk 00:07:40]} {[%emt 00:00:35]} 47. h4
{[%clk 00:03:55]} {[%emt 00:03:09]} Bc5 {[%clk 00:07:27]} {[%emt 00:00:41]} 48.
Bc1 {[%clk 00:03:50]} {[%emt 00:00:37]} Bd6 {[%clk 00:06:25]} {[%emt 00:01:31]}
49. Be3 {[%clk 00:03:27]} {[%emt 00:00:53]} e5 {[%clk 00:04:59]} {[%emt
00:01:55]} 50. fxe5 {[%clk 00:03:55]} {[%emt 00:00:03]} Bxe5 {[%clk 00:05:24]}
{[%emt 00:00:05]} 51. Bf2 {[%clk 00:04:10]} {[%emt 00:00:14]} Bd6 {[%clk
00:04:28]} {[%emt 00:01:26]} 52. Be1 {[%clk 00:04:26]} {[%emt 00:00:15]} Bc5
{[%clk 00:04:20]} {[%emt 00:00:38]} 53. Bd2 {[%clk 00:04:34]} {[%emt 00:00:22]}
Bg1 {[%clk 00:04:07]} {[%emt 00:00:43]} 54. Bf4 {[%clk 00:04:52]} {[%emt
00:00:12]} Ba7 {[%clk 00:03:19]} {[%emt 00:01:17]} 55. Bd2 {[%clk 00:05:07]}
{[%emt 00:00:16]} Bb8 {[%clk 00:03:33]} {[%emt 00:00:15]} 56. Be1 {[%clk
00:05:13]} {[%emt 00:00:24]} Be5 {[%clk 00:03:29]} {[%emt 00:00:34]} 57. Bf2
{[%clk 00:05:35]} {[%emt 00:00:09]} Bf6 {[%clk 00:03:36]} {[%emt 00:00:22]} 58.
Be1 {[%clk 00:05:22]} {[%emt 00:00:43]} Be5 {[%clk 00:01:47]} {[%emt 00:02:19]}
59. Bf2 {[%clk 00:05:44]} {[%emt 00:00:09]} Kf5 {[%clk 00:01:39]} {[%emt
00:00:38]} 60. Kf3 {[%clk 00:04:41]} {[%emt 00:01:33]} b4 {[%clk 00:01:54]}
{[%emt 00:00:15]} 61. axb4 {[%clk 00:04:54]} {[%emt 00:00:18]} Bxc3 {[%clk
00:01:56]} {[%emt 00:00:28]} 62. Ke2 {[%clk 00:04:22]} {[%emt 00:01:02]} Bxb4
{[%clk 00:02:12]} {[%emt 00:00:12]} 63. Bd4 {[%clk 00:03:52]} {[%emt 00:01:02]}
Ke4 {[%clk 00:02:16]} {[%emt 00:00:24]} 0-1